[Event "Allsvenskan Div II 5 2023/2024: SS Manhem III - Lidkopings SS"]
[Site "Goteborgs schackcentrum, Vegatan 20, Gothenburg, Sweden"]
[Date "2023.10.22"]
[Round "1.1"]
[White "Fransson, Peter"]
[Black "Andreasson, Vincent"]
[Result "1-0"]
[TimeControl "90 minutes for 40 moves + 30 minutes for the rest of the game + 30 seconds per move from move one."]
[WhiteFideId "1701142"]
[BlackFideId "1721321"]
[WhiteElo "2275"]
[BlackElo "2000"]

1. Nf3 {[%clk 01:30:43]} {[%emt 00:00:17]} d5 {[%clk 01:27:53]} {[%emt
00:03:09]} 2. g3 {[%clk 01:29:14]} {[%emt 00:01:57]} Nd7 {[%clk 01:27:41]}
{[%emt 00:00:43]} 3. Bg2 {[%emt 00:02:51]} e5 {[%clk 01:28:02]} {[%emt
00:00:06]} 4. d3 {[%clk 01:26:20]} {[%emt 00:01:06]} Ngf6 {[%clk 01:27:42]}
{[%emt 00:00:50]} 5. O-O {[%clk 01:24:55]} {[%emt 00:01:54]} Bd6 {[%clk
01:27:26]} {[%emt 00:00:46]} 6. Nbd2 {[%clk 01:25:01]} {[%emt 00:00:25]} O-O
{[%clk 01:25:38]} {[%emt 00:02:18]} 7. e4 {[%clk 01:12:18]} {[%emt 00:13:13]}
dxe4 {[%clk 01:24:00]} {[%emt 00:02:08]} 8. Nxe4 {[%clk 01:12:37]} {[%emt
00:00:10]} Nxe4 {[%clk 01:24:27]} {[%emt 00:00:04]} 9. dxe4 {[%clk 01:12:57]}
{[%emt 00:00:09]} Nf6 {[%clk 01:24:08]} {[%emt 00:00:50]} 10. Qe2 {[%clk
00:57:29]} {[%emt 00:15:58]} Re8 {[%clk 01:20:35]} {[%emt 00:04:03]} 11. Rd1
{[%clk 00:56:43]} {[%emt 00:01:16]} Qe7 {[%clk 01:16:37]} {[%emt 00:04:28]} 12.
Ne1 {[%clk 00:52:53]} {[%emt 00:04:19]} Bc5 {[%clk 01:14:34]} {[%emt 00:02:34]}
13. Nd3 {[%clk 00:52:54]} {[%emt 00:00:29]} Bg4 {[%clk 01:13:52]} {[%emt
00:01:12]} 14. Bf3 {[%clk 00:53:14]} {[%emt 00:00:09]} Bxf3 {[%clk 01:14:12]}
{[%emt 00:00:10]} 15. Qxf3 {[%clk 00:53:41]} {[%emt 00:00:04]} Nd7 {[%clk
01:11:59]} {[%emt 00:02:42]} 16. h4 {[%clk 00:47:26]} {[%emt 00:06:47]} Bb6
{[%clk 01:07:52]} {[%emt 00:04:35]} 17. Bg5 {[%clk 00:45:24]} {[%emt 00:02:32]}
Qe6 {[%clk 01:08:11]} {[%emt 00:00:12]} 18. a4 {[%clk 00:41:47]} {[%emt
00:04:08]} h6 {[%clk 01:08:03]} {[%emt 00:00:37]} 19. Be3 {[%clk 00:34:12]}
{[%emt 00:08:04]} Nf6 {[%clk 00:57:44]} {[%emt 00:10:49]} 20. a5 {[%clk
00:32:32]} {[%emt 00:02:11]} Bxe3 {[%clk 00:58:02]} {[%emt 00:00:13]} 21. Qxe3
{[%clk 00:32:53]} {[%emt 00:00:08]} b6 {[%clk 00:40:17]} {[%emt 00:18:16]} 22.
b3 {[%clk 00:32:29]} {[%emt 00:00:53]} Qg4 {[%clk 00:40:24]} {[%emt 00:00:23]}
23. Re1 {[%clk 00:32:28]} {[%emt 00:00:31]} Rad8 {[%clk 00:40:38]} {[%emt
00:00:15]} 24. Kg2 {[%clk 00:29:57]} {[%emt 00:03:01]} Rd4 {[%clk 00:38:37]}
{[%emt 00:02:32]} 25. Nxe5 {[%clk 00:28:59]} {[%emt 00:01:28]} Qxe4+ {[%clk
00:38:46]} {[%emt 00:00:22]} 26. Qxe4 {[%clk 00:28:18]} {[%emt 00:01:10]} Rxe4
{[%clk 00:39:12]} {[%emt 00:00:05]} 27. Rxe4 {[%clk 00:28:21]} {[%emt
00:00:26]} Nxe4 {[%clk 00:39:40]} {[%emt 00:00:02]} 28. Nc6 {[%clk 00:28:16]}
{[%emt 00:00:35]} Nc3 {[%clk 00:36:41]} {[%emt 00:03:29]} 29. Nxa7 {[%clk
00:23:50]} {[%emt 00:04:56]} Ra8 {[%clk 00:29:12]} {[%emt 00:07:59]} 30. Nc6
{[%clk 00:21:16]} {[%emt 00:03:03]} bxa5 {[%clk 00:26:45]} {[%emt 00:02:59]} 31.
Rxa5 {[%clk 00:21:30]} {[%emt 00:00:15]} Re8 {[%clk 00:25:29]} {[%emt
00:01:46]} 32. Rc5 {[%clk 00:20:35]} {[%emt 00:01:25]} Ne4 {[%clk 00:25:43]}
{[%emt 00:00:15]} 33. Re5 {[%clk 00:20:54]} {[%emt 00:00:12]} Kf8 {[%clk
00:25:35]} {[%emt 00:00:38]} 34. Kf3 {[%clk 00:19:02]} {[%emt 00:02:22]} Nd6
{[%clk 00:25:30]} {[%emt 00:00:35]} 35. Rxe8+ {[%clk 00:19:14]} {[%emt
00:00:18]} Kxe8 {[%clk 00:25:48]} {[%emt 00:00:12]} 36. Ke3 {[%clk 00:10:16]}
{[%emt 00:09:27]} Kd7 {[%clk 00:25:56]} {[%emt 00:00:23]} 37. Nd4 {[%clk
00:09:49]} {[%emt 00:00:56]} c5 {[%clk 00:23:54]} {[%emt 00:02:33]} 38. Ne2
{[%clk 00:10:08]} {[%emt 00:00:11]} Ke6 {[%clk 00:23:50]} {[%emt 00:00:34]} 39.
Nf4+ {[%clk 00:06:33]} {[%emt 00:04:04]} Ke5 {[%clk 00:22:30]} {[%emt
00:01:50]} 40. Nd3+ {[%clk 00:02:28]} {[%emt 00:04:35]} Kd5 {[%clk 00:22:56]}
{[%emt 00:00:05]} 41. c4+ {[%clk 00:00:57]} {[%emt 00:02:00]} Kc6 {[%clk
00:23:23]} {[%emt 00:00:03]} 42. Kf4 {[%clk 00:29:41]} {[%emt 00:01:46]} f6
{[%clk 00:49:26]} {[%emt 00:04:27]} 43. h5 {[%clk 00:30:04]} {[%emt 00:00:08]}
Kb6 {[%clk 00:49:50]} {[%emt 00:00:06]} 44. g4 {[%clk 00:28:30]} {[%emt
00:02:04]} Kc6 {[%clk 00:50:18]} {[%emt 00:00:02]} 45. f3 {[%clk 00:28:27]}
{[%emt 00:00:32]} Kb6 {[%clk 00:50:46]} {[%emt 00:00:03]} 46. Nf2 {[%clk
00:28:10]} {[%emt 00:00:47]} Ka5 {[%clk 00:45:40]} {[%emt 00:05:36]} 47. Ne4
{[%clk 00:27:39]} {[%emt 00:01:00]} Nb7 {[%clk 00:45:54]} {[%emt 00:00:16]} 48.
Kf5 {[%clk 00:27:59]} {[%emt 00:00:10]} Kb4 {[%clk 00:46:23]} 49. Kg6 {[%clk
00:28:19]} {[%emt 00:00:11]} Kxb3 {[%clk 00:46:46]} {[%emt 00:00:07]} 50. Kxg7
{[%clk 00:28:41]} {[%emt 00:00:07]} Kxc4 {[%clk 00:47:12]} {[%emt 00:00:04]} 51.
Kxh6 {[%clk 00:29:02]} {[%emt 00:00:09]} Kd4 {[%clk 00:47:35]} {[%emt
00:00:08]} 52. Kg6 {[%clk 00:29:05]} {[%emt 00:00:26]} c4 {[%clk 00:46:57]}
{[%emt 00:01:09]} 53. h6 {[%clk 00:29:20]} 1-0

[Event "Allsvenskan Div II 5 2023/2024: SS Manhem III - Lidkopings SS"]
[Site "Goteborgs schackcentrum, Vegatan 20, Gothenburg, Sweden"]
[Date "2023.10.22"]
[Round "1.2"]
[White "Almemo, Fredrik"]
[Black "Al Waeli, Laith"]
[Result "0-1"]
[TimeControl "90 minutes for 40 moves + 30 minutes for the rest of the game + 30 seconds per move from move one."]
[BlackTitle "FM"]
[WhiteFideId "1721186"]
[BlackFideId "4801059"]
[WhiteElo "1841"]
[BlackElo "2061"]

1. d4 {[%clk 01:30:30]} {[%emt 00:24:25]} Nf6 {[%clk 01:30:31]} {[%emt
00:00:32]} 2. Nf3 {[%clk 01:31:07]} {[%emt 00:00:22]} g6 {[%clk 01:30:52]}
{[%emt 00:00:09]} 3. g3 {[%clk 01:30:45]} {[%emt 00:00:52]} Bg7 {[%clk
01:31:12]} {[%emt 00:00:09]} 4. Bg2 {[%clk 01:30:57]} {[%emt 00:00:20]} O-O
{[%clk 01:31:28]} {[%emt 00:00:13]} 5. c4 {[%clk 01:30:23]} {[%emt 00:01:05]}
d6 {[%clk 01:31:47]} {[%emt 00:00:10]} 6. Nc3 {[%clk 01:29:58]} {[%emt
00:00:55]} Nbd7 {[%clk 01:32:07]} {[%emt 00:00:09]} 7. O-O {[%clk 01:26:19]}
{[%emt 00:04:11]} e5 {[%clk 01:32:26]} {[%emt 00:00:11]} 8. dxe5 {[%clk
01:23:47]} {[%emt 00:03:02]} dxe5 {[%clk 01:32:22]} {[%emt 00:00:33]} 9. Bg5
{[%clk 01:23:30]} {[%emt 00:00:47]} h6 {[%clk 01:31:13]} {[%emt 00:01:40]} 10.
Bd2 {[%clk 01:21:08]} {[%emt 00:02:52]} e4 {[%clk 01:23:25]} {[%emt 00:08:17]}
11. Ne1 {[%clk 01:12:36]} {[%emt 00:09:03]} Re8 {[%clk 01:22:29]} {[%emt
00:01:24]} 12. Qc2 {[%clk 01:10:17]} {[%emt 00:02:50]} Qe7 {[%clk 01:15:49]}
{[%emt 00:07:10]} 13. Rd1 {[%clk 01:07:45]} {[%emt 00:03:03]} Nc5 {[%emt
00:18:44]} 14. Qc1 {[%clk 01:02:09]} {[%emt 00:04:24]} Kh7 {[%clk 00:57:49]}
{[%emt 00:01:57]} 15. Nc2 {[%clk 01:00:13]} {[%emt 00:02:25]} a5 {[%clk
00:48:43]} {[%emt 00:09:37]} 16. Bf4 {[%clk 00:54:33]} {[%emt 00:06:11]} g5
{[%clk 00:37:21]} {[%emt 00:11:51]} 17. Be3 {[%clk 00:52:11]} {[%emt 00:02:53]}
c6 {[%clk 00:37:18]} {[%emt 00:00:32]} 18. Bd4 {[%clk 00:49:01]} {[%emt
00:03:40]} Bf5 {[%clk 00:34:24]} {[%emt 00:03:23]} 19. Ne3 {[%clk 00:48:19]}
{[%emt 00:01:13]} Bg6 {[%clk 00:34:49]} {[%emt 00:00:06]} 20. b3 {[%clk
00:38:38]} {[%emt 00:10:11]} Rad8 {[%clk 00:32:02]} {[%emt 00:03:15]} 21. Rd2
{[%clk 00:34:21]} {[%emt 00:04:50]} Nd3 {[%clk 00:27:08]} {[%emt 00:05:23]} 22.
exd3 {[%clk 00:19:58]} {[%emt 00:14:53]} Rxd4 {[%clk 00:27:23]} {[%emt
00:00:15]} 23. dxe4 {[%clk 00:20:13]} {[%emt 00:00:15]} Nxe4 {[%clk 00:24:23]}
{[%emt 00:03:30]} 24. Nxe4 {[%clk 00:15:37]} {[%emt 00:05:06]} Bxe4 {[%clk
00:22:44]} {[%emt 00:02:08]} 25. Rfd1 {[%clk 00:14:08]} {[%emt 00:01:59]} Rxd2
{[%clk 00:18:37]} {[%emt 00:04:37]} 26. Qxd2 {[%clk 00:12:47]} {[%emt
00:01:51]} Bg6 {[%clk 00:11:50]} {[%emt 00:07:17]} 27. Qxa5 {[%clk 00:10:16]}
{[%emt 00:03:01]} Be5 {[%clk 00:10:32]} {[%emt 00:01:48]} 28. Qd2 {[%clk
00:10:07]} {[%emt 00:00:39]} Bb8 {[%clk 00:06:25]} {[%emt 00:04:36]} 29. Qd7
{[%clk 00:08:04]} {[%emt 00:02:34]} Ba7 {[%clk 00:06:37]} {[%emt 00:00:18]} 30.
Ng4 {[%clk 00:07:49]} {[%emt 00:00:46]} Qxd7 {[%clk 00:04:56]} {[%emt
00:02:09]} 31. Rxd7 {[%clk 00:01:06]} {[%emt 00:07:14]} Re1+ {[%clk 00:05:19]}
{[%emt 00:00:07]} 32. Bf1 {[%clk 00:01:36]} h5 {[%clk 00:02:07]} {[%emt
00:03:41]} 33. Ne3 {[%clk 00:01:34]} {[%emt 00:00:33]} Kg7 {[%clk 00:01:36]}
{[%emt 00:01:01]} 34. Kg2 {[%clk 00:01:07]} {[%emt 00:00:56]} Be4+ {[%clk
00:01:56]} {[%emt 00:00:10]} 35. Kg1 {[%clk 00:00:55]} {[%emt 00:00:43]} Rxe3
{[%clk 00:02:10]} {[%emt 00:00:17]} 36. fxe3 {[%clk 00:00:31]} {[%emt
00:00:52]} Bxe3# {[%clk 00:02:33]} 0-1

[Event "Allsvenskan Div II 5 2023/2024: SS Manhem III - Lidkopings SS"]
[Site "Goteborgs schackcentrum, Vegatan 20, Gothenburg, Sweden"]
[Date "2023.10.22"]
[Round "1.3"]
[White "Bergenwall, Henric"]
[Black "Recktenwald, Christian"]
[Result "1/2-1/2"]
[TimeControl "90 minutes for 40 moves + 30 minutes for the rest of the game + 30 seconds per move from move one."]
[WhiteFideId "1747924"]
[BlackFideId "1728709"]
[WhiteElo "1966"]
[BlackElo "1809"]

1. e4 {[%clk 01:30:56]} {[%emt 00:00:03]} c5 {[%clk 01:30:48]} {[%emt
00:00:13]} 2. Nf3 {[%clk 01:31:12]} {[%emt 00:00:14]} Nc6 {[%clk 01:31:08]}
{[%emt 00:00:10]} 3. Bb5 {[%clk 01:31:24]} {[%emt 00:00:18]} g6 {[%clk
01:27:08]} {[%emt 00:04:30]} 4. O-O {[%clk 01:31:40]} {[%emt 00:00:14]} Bg7
{[%clk 01:27:14]} {[%emt 00:00:24]} 5. Re1 {[%clk 01:31:45]} {[%emt 00:00:24]}
Nf6 {[%clk 01:22:28]} {[%emt 00:05:17]} 6. e5 {[%clk 01:30:34]} {[%emt
00:01:41]} Nd5 {[%clk 01:19:23]} {[%emt 00:03:35]} 7. c3 {[%clk 01:27:41]}
{[%emt 00:03:23]} O-O {[%clk 01:12:43]} {[%emt 00:07:10]} 8. d4 {[%clk
01:22:43]} {[%emt 00:05:28]} cxd4 {[%clk 01:04:00]} {[%emt 00:09:13]} 9. cxd4
{[%clk 01:16:17]} {[%emt 00:06:56]} Nc7 {[%clk 00:58:25]} {[%emt 00:06:05]} 10.
Ba4 {[%clk 01:13:30]} {[%emt 00:03:16]} b5 {[%clk 00:54:18]} {[%emt 00:04:37]}
11. Bb3 {[%clk 01:10:55]} {[%emt 00:03:05]} d6 {[%clk 00:53:32]} {[%emt
00:01:16]} 12. Qc2 {[%clk 01:04:03]} {[%emt 00:07:22]} Bb7 {[%clk 00:49:31]}
{[%emt 00:04:32]} 13. Bf4 {[%clk 00:58:52]} {[%emt 00:05:41]} Rc8 {[%clk
00:42:25]} {[%emt 00:07:36]} 14. Qe2 {[%clk 00:56:34]} {[%emt 00:02:48]} Na5
{[%clk 00:35:01]} {[%emt 00:07:55]} 15. Nbd2 {[%clk 00:49:24]} {[%emt
00:07:39]} d5 {[%clk 00:24:42]} {[%emt 00:10:49]} 16. h4 {[%clk 00:43:57]}
{[%emt 00:05:57]} Nc4 {[%clk 00:23:35]} {[%emt 00:01:37]} 17. Nf1 {[%clk
00:44:02]} {[%emt 00:00:25]} Ne6 {[%clk 00:23:31]} {[%emt 00:00:34]} 18. Bc1
{[%clk 00:41:33]} {[%emt 00:02:59]} Qb6 {[%clk 00:23:18]} {[%emt 00:00:42]} 19.
Rd1 {[%clk 00:39:49]} {[%emt 00:02:15]} Rc7 {[%clk 00:22:56]} {[%emt 00:00:52]}
20. h5 {[%clk 00:38:28]} {[%emt 00:01:51]} Rfc8 {[%clk 00:21:06]} {[%emt
00:02:20]} 21. hxg6 {[%clk 00:34:23]} {[%emt 00:04:35]} hxg6 {[%clk 00:20:10]}
{[%emt 00:01:26]} 22. Be3 {[%clk 00:33:13]} {[%emt 00:01:39]} b4 {[%clk
00:19:09]} {[%emt 00:01:32]} 23. Ng5 {[%clk 00:30:27]} {[%emt 00:03:16]} Ba6
{[%clk 00:13:57]} {[%emt 00:05:42]} 24. Nxe6 {[%clk 00:27:50]} {[%emt
00:03:06]} Qxe6 {[%clk 00:13:57]} {[%emt 00:00:30]} 25. Qf3 {[%clk 00:27:34]}
{[%emt 00:00:46]} Bb7 {[%clk 00:12:04]} {[%emt 00:02:24]} 26. Bc1 {[%clk
00:27:57]} {[%emt 00:00:07]} Na5 {[%clk 00:10:43]} {[%emt 00:01:52]} 27. Ng3
{[%clk 00:25:31]} {[%emt 00:02:55]} Nc4 {[%clk 00:08:34]} {[%emt 00:02:38]} 28.
Ne2 {[%clk 00:25:02]} {[%emt 00:01:00]} Qb6 {[%clk 00:08:16]} {[%emt 00:00:48]}
29. Nf4 {[%clk 00:23:52]} {[%emt 00:01:40]} e6 {[%clk 00:08:22]} {[%emt
00:00:25]} 30. Nh3 {[%clk 00:22:43]} {[%emt 00:01:38]} Qb5 {[%clk 00:07:02]}
{[%emt 00:01:49]} 31. Ng5 {[%clk 00:22:03]} {[%emt 00:01:10]} a5 {[%clk
00:06:43]} {[%emt 00:00:50]} 32. Qh3 {[%clk 00:21:47]} {[%emt 00:00:47]} a4
{[%clk 00:05:27]} {[%emt 00:01:45]} 33. Bxc4 {[%clk 00:22:06]} {[%emt
00:00:11]} dxc4 {[%clk 00:04:40]} {[%emt 00:01:16]} 34. Nh7 {[%clk 00:22:28]}
{[%emt 00:00:09]} Qd5 {[%clk 00:02:01]} {[%emt 00:03:08]} 35. Ng5 {[%clk
00:19:06]} {[%emt 00:03:53]} c3 {[%clk 00:01:05]} {[%emt 00:01:26]} 36. bxc3
{[%clk 00:19:21]} {[%emt 00:00:14]} Rxc3 {[%clk 00:01:15]} {[%emt 00:00:21]} 37.
Nf3 {[%clk 00:19:32]} {[%emt 00:00:19]} Rc2 {[%clk 00:01:06]} {[%emt 00:00:39]}
38. Bg5 {[%clk 00:19:07]} {[%emt 00:00:54]} b3 {[%clk 00:00:33]} {[%emt
00:01:03]} 39. axb3 {[%clk 00:19:02]} {[%emt 00:00:35]} axb3 {[%clk 00:01:01]}
{[%emt 00:00:02]} 40. Ne1 {[%clk 00:19:26]} {[%emt 00:00:06]} Ra2 {[%clk
00:01:03]} {[%emt 00:00:28]} 41. Rab1 {[%clk 00:17:57]} {[%emt 00:01:59]} Rcc2
{[%clk 00:18:31]} {[%emt 00:13:01]} 42. Be3 {[%clk 00:46:36]} {[%emt 00:01:52]}
Re2 {[%clk 00:16:11]} {[%emt 00:02:50]} 43. Qg4 {[%clk 00:44:00]} {[%emt
00:03:07]} Ba6 {[%clk 00:09:18]} {[%emt 00:07:22]} 44. Nd3 {[%clk 00:43:07]}
{[%emt 00:01:23]} Bxd3 {[%clk 00:07:58]} {[%emt 00:01:50]} 45. Rxd3 {[%clk
00:43:35]} {[%emt 00:00:02]} Reb2 {[%clk 00:07:57]} {[%emt 00:00:31]} 46. Rc1
{[%clk 00:40:24]} {[%emt 00:03:41]} Rc2 {[%clk 00:07:52]} {[%emt 00:00:35]} 47.
Rc3 {[%clk 00:36:17]} {[%emt 00:04:38]} Rxc1+ {[%clk 00:04:28]} {[%emt
00:03:54]} 48. Bxc1 {[%clk 00:33:46]} {[%emt 00:03:01]} Qb7 {[%clk 00:02:55]}
{[%emt 00:02:02]} 49. Qh4 {[%clk 00:32:53]} {[%emt 00:01:23]} b2 {[%clk
00:01:25]} {[%emt 00:02:00]} 50. Qd8+ {[%clk 00:33:11]} {[%emt 00:00:12]} Kh7
{[%clk 00:01:44]} {[%emt 00:00:11]} 51. Qh4+ {[%clk 00:33:40]} {[%emt
00:00:02]} Kg8 {[%clk 00:02:03]} {[%emt 00:00:10]} 52. Qd8+ {[%clk 00:34:08]}
{[%emt 00:00:02]} Kh7 {[%clk 00:02:11]} {[%emt 00:00:22]} 53. Qh4+ {[%clk
00:34:29]} {[%emt 00:00:09]} Kg8 {[%clk 00:02:01]} 1/2-1/2

[Event "Allsvenskan Div II 5 2023/2024: SS Manhem III - Lidkopings SS"]
[Site "Goteborgs schackcentrum, Vegatan 20, Gothenburg, Sweden"]
[Date "2023.10.22"]
[Round "1.4"]
[White "Ahlqvist, Jonas"]
[Black "Nyberg, Arne"]
[Result "1/2-1/2"]
[TimeControl "90 minutes for 40 moves + 30 minutes for the rest of the game + 30 seconds per move from move one."]
[WhiteFideId "1721330"]
[BlackFideId "1731815"]
[WhiteElo "1788"]
[BlackElo "1890"]

1. e4 {[%clk 01:30:57]} {[%emt 00:00:01]} e6 {[%clk 01:30:51]} {[%emt
00:00:10]} 2. d4 {[%clk 01:31:15]} {[%emt 00:00:12]} d5 {[%clk 01:31:12]}
{[%emt 00:00:08]} 3. exd5 {[%clk 01:31:31]} {[%emt 00:00:15]} exd5 {[%clk
01:31:30]} {[%emt 00:00:12]} 4. c4 {[%clk 01:31:56]} {[%emt 00:00:05]} Nf6
{[%clk 01:31:26]} {[%emt 00:00:35]} 5. Nc3 {[%clk 01:32:16]} {[%emt 00:00:09]}
c6 {[%clk 01:30:34]} {[%emt 00:01:22]} 6. Nf3 {[%clk 01:31:23]} {[%emt
00:01:23]} Be7 {[%clk 01:30:46]} {[%emt 00:00:18]} 7. Bd3 {[%clk 01:29:12]}
{[%emt 00:02:41]} O-O {[%clk 01:30:50]} {[%emt 00:00:26]} 8. O-O {[%clk
01:29:36]} {[%emt 00:00:06]} Bg4 {[%emt 00:03:56]} 9. c5 {[%emt 00:01:23]} Re8
{[%clk 01:23:53]} {[%emt 00:02:08]} 10. h3 {[%clk 01:28:11]} {[%emt 00:01:56]}
Bxf3 {[%clk 01:18:20]} {[%emt 00:06:03]} 11. Qxf3 {[%clk 01:25:21]} {[%emt
00:03:19]} Nbd7 {[%clk 01:18:20]} {[%emt 00:00:29]} 12. Bf4 {[%clk 01:23:34]}
{[%emt 00:02:18]} b6 {[%clk 01:13:20]} {[%emt 00:05:30]} 13. b4 {[%clk
01:23:00]} {[%emt 00:01:04]} a5 {[%clk 01:12:57]} {[%emt 00:00:53]} 14. a3
{[%clk 01:22:12]} {[%emt 00:01:18]} axb4 {[%clk 01:10:42]} {[%emt 00:02:45]} 15.
axb4 {[%clk 01:22:29]} {[%emt 00:00:13]} bxc5 {[%clk 01:10:51]} {[%emt
00:00:21]} 16. bxc5 {[%clk 01:22:39]} {[%emt 00:00:20]} Nf8 {[%clk 01:09:39]}
{[%emt 00:01:41]} 17. Ne2 {[%clk 01:18:56]} {[%emt 00:04:14]} Ne4 {[%clk
00:49:03]} {[%emt 00:21:06]} 18. Bxe4 {[%clk 01:07:41]} {[%emt 00:11:46]} dxe4
{[%clk 00:49:23]} {[%emt 00:00:09]} 19. Qxe4 {[%clk 01:08:01]} {[%emt
00:00:10]} Bxc5 {[%clk 00:48:09]} {[%emt 00:01:44]} 20. Qxc6 {[%clk 01:07:10]}
{[%emt 00:01:20]} Rxa1 {[%clk 00:38:26]} {[%emt 00:10:14]} 21. Rxa1 {[%clk
01:07:13]} {[%emt 00:00:27]} Bxd4 {[%clk 00:38:24]} {[%emt 00:00:32]} 22. Nxd4
{[%clk 01:07:05]} {[%emt 00:00:38]} Qxd4 {[%clk 00:38:46]} {[%emt 00:00:08]} 23.
Qxe8 {[%clk 01:07:15]} {[%emt 00:00:20]} Qxa1+ {[%clk 00:39:03]} {[%emt
00:00:12]} 24. Kh2 {[%clk 01:07:43]} {[%emt 00:00:03]} Qd4 {[%clk 00:37:25]}
{[%emt 00:02:08]} 25. Qb8 {[%clk 01:07:08]} {[%emt 00:01:05]} f5 {[%clk
00:34:01]} {[%emt 00:03:54]} 26. Bd6 {[%clk 00:54:13]} {[%emt 00:13:25]} Qf6
{[%clk 00:33:55]} {[%emt 00:00:36]} 27. Kg3 {[%clk 00:53:04]} {[%emt 00:01:39]}
h6 {[%clk 00:29:12]} {[%emt 00:05:13]} 28. f4 {[%clk 00:51:09]} {[%emt
00:02:25]} Qg6+ {[%clk 00:26:13]} {[%emt 00:03:29]} 29. Kf3 {[%clk 00:51:00]}
{[%emt 00:00:40]} Qf7 {[%clk 00:26:26]} {[%emt 00:00:16]} 30. g4 {[%clk
00:38:02]} {[%emt 00:13:29]} g6 {[%clk 00:23:25]} {[%emt 00:03:30]} 31. Kg3
{[%clk 00:34:49]} {[%emt 00:03:44]} fxg4 {[%clk 00:19:17]} {[%emt 00:04:38]} 32.
hxg4 {[%clk 00:34:43]} {[%emt 00:00:35]} Kg7 {[%clk 00:19:11]} {[%emt
00:00:36]} 33. Qxf8+ {[%clk 00:20:19]} {[%emt 00:14:53]} Qxf8 {[%emt 00:00:14]}
34. Bxf8+ {[%emt 00:00:08]} Kxf8 {[%emt 00:00:08]} 35. f5 {[%emt 00:00:18]}
gxf5 {[%clk 00:17:05]} {[%emt 00:01:48]} 36. gxf5 {[%clk 00:20:40]} {[%emt
00:00:09]} Kf7 {[%clk 00:17:31]} {[%emt 00:00:04]} 37. Kg4 {[%clk 00:20:41]}
{[%emt 00:00:30]} Kf6 {[%clk 00:17:51]} {[%emt 00:00:10]} 38. Kh5 {[%clk
00:20:53]} {[%emt 00:00:19]} Kxf5 {[%emt 00:00:26]} 39. Kxh6 {[%emt 00:00:01]}
Ke5 {[%emt 00:00:37]} 1/2-1/2